fUST/lending_fUST_20250902
["ID","MTS","AMOUNT","RATE_DAILY","PERIOD"]
[383013824,1756806308477,332.2848467,0.00013462,2]
[383013825,1756806325175,1239.22242918,0.00013462,2]
[383013826,1756806349612,610.89617775,0.00013462,2]
[383013827,1756806360747,8873.5634706,0.00012696,2]
[383013828,1756806362714,300.0,0.00013597,2]
[383013830,1756806422330,300.0,0.00013597,2]
[383013831,1756806430134,-1239.22242918,0.00013598,2]
[383013832,1756806430155,-903.5079298,0.00013598,2]
[383013833,1756806430175,-9439.39864976,0.00013598,2]
[383013834,1756806430198,-899.0,0.00013672,2]
[383013835,1756806430220,-300.0,0.00013672,2]
[383013836,1756806430241,-500.0,0.00013673,2]
[383013837,1756806430262,-500.0,0.00013673,2]
[383013838,1756806430281,-500.0,0.00013673,2]
[383013839,1756806430300,-347.13913744,0.00013673,2]
[383013840,1756806430320,-500.0,0.00013673,2]
[383013841,1756806430341,-500.0,0.00013673,2]
[383013842,1756806430361,-500.0,0.00013673,2]
[383013843,1756806430382,-151.0,0.0001369,2]
[383013844,1756806430401,-151.0,0.0001369,2]
[383013845,1756806430423,-151.0,0.0001369,2]
[383013846,1756806430446,-151.0,0.0001369,2]
[383013847,1756806430465,-151.0,0.0001369,2]
[383013848,1756806430486,-151.0,0.0001369,2]
[383013849,1756806430510,-91.02765213,0.0001369,2]
[383013858,1756806452096,-59.97234787,0.0001369,2]
[383013859,1756806452116,-1016.34347,0.0001369,2]
[383013860,1756806452137,-151.0,0.0001369,2]
[383013861,1756806452159,-2524.82941417,0.0001369,2]
[383013862,1756806452179,-293.78171759,0.0001369,2]
[383013863,1756806452202,-500.0,0.00013697,2]
[383013864,1756806452223,-428.11725264,0.00013697,2]
[383013865,1756806452246,-436.40358223,0.00013697,2]
[383013866,1756806452268,-480.0,0.00013698,2]
[383013867,1756806452289,-2729.79985,0.00013698,2]
[383013868,1756806452311,-616.62373487,0.00013698,2]
[383013869,1756806452332,-482.74009912,0.00013698,2]
[383013870,1756806452353,-480.3337,0.00013698,2]
[383013871,1756806452373,-472.2274311,0.00013698,2]
[383013872,1756806452395,-480.0,0.00013698,2]
[383013873,1756806452414,-481.55497359,0.00013698,2]
[383013874,1756806452434,-482.10016879,0.00013698,2]
[383013875,1756806452455,-153.64,0.00013698,2]
[383013876,1756806452475,-481.74619696,0.00013698,2]
[383013877,1756806452496,-1004.13678423,0.00013698,2]
[383013878,1756806452522,-482.96841881,0.00013698,2]
[383013879,1756806452542,-189.20929171,0.00013698,2]
[383013880,1756806452563,-480.0,0.00013698,2]
[383013881,1756806452587,-482.84796201,0.00013698,2]
[383013882,1756806452607,-480.0,0.00013698,2]
[383013883,1756806452628,-480.91679477,0.00013698,2]
[383013884,1756806452652,-3139.4631752,0.00013698,2]
[383013885,1756806452673,-480.0,0.00013698,2]
[383013886,1756806452692,-480.0,0.00013698,2]
[383013887,1756806452713,-480.0,0.00013698,2]
[383013888,1756806452734,-480.0,0.00013698,2]
[383013889,1756806452755,-480.0,0.00013698,2]
[383013890,1756806452775,-480.0,0.00013698,2]
[383013891,1756806452795,-480.0,0.00013698,2]
[383013892,1756806452817,-480.0,0.00013698,2]
[383013893,1756806452838,-548.01162209,0.00013698,2]
[383013894,1756806452858,-481.41009471,0.00013698,2]
[383013895,1756806453039,-312.55573202,0.00013698,2]
[383013896,1756806453063,-480.67937278,0.00013698,2]
[383013897,1756806453085,-480.0,0.00013698,2]
[383013898,1756806453107,-481.96148247,0.00013698,2]
[383013899,1756806453129,-480.0,0.00013698,2]
[383013900,1756806453152,-501.63,0.00013698,2]
[383013901,1756806453173,-480.0,0.00013698,2]
[383013902,1756806453194,-480.0,0.00013698,2]
[383013903,1756806453215,-480.0,0.00013698,2]
[383013904,1756806453236,-480.0,0.00013698,2]
[383013905,1756806453256,-481.3475949,0.00013698,2]
[383013906,1756806453276,-480.39668907,0.00013698,2]
[383013907,1756806453296,-480.0,0.00013698,2]
[383013908,1756806453317,-480.0,0.00013698,2]
[383013909,1756806453337,-480.0,0.00013698,2]
[383013910,1756806453358,-482.30288173,0.00013698,2]
[383013911,1756806453380,-481.17422001,0.00013698,2]
[383013912,1756806453402,-480.0,0.00013698,2]
[383013913,1756806453424,-480.0,0.00013698,2]
[383013914,1756806453445,-482.01963631,0.00013698,2]
[383013915,1756806453467,-483.90286577,0.00013698,2]
[383013916,1756806453488,-185.59470109,0.00013698,2]
[383013917,1756806453516,-196.14632991,0.00013698,2]
[383013918,1756806453541,-480.0,0.00013698,2]
[383013919,1756806453569,-480.71232644,0.00013698,2]
[383013920,1756806453594,-483.93589131,0.00013698,2]
[383013921,1756806453617,-482.2838441,0.00013698,2]
[383013922,1756806453639,-480.0,0.00013698,2]
[383013923,1756806453662,-608.34,0.00013698,2]
[383013924,1756806453686,-4864.3848001,0.00013698,2]
[383013925,1756806453709,-482.87387624,0.00013698,2]
[383013926,1756806453731,-480.0,0.00013698,2]
[383013927,1756806453753,-482.17376538,0.00013698,2]
[383013928,1756806453778,-482.26216545,0.00013698,2]
[383013929,1756806453799,-482.80527899,0.00013698,2]
[383013930,1756806453822,-483.11632769,0.00013698,2]
[383013931,1756806453845,-481.234256,0.00013698,2]
[383013932,1756806453868,-488.1607038,0.00013698,2]
[383013933,1756806453891,-481.55198521,0.00013698,2]
[383013934,1756806453912,-480.7767452,0.00013698,2]
[383013935,1756806453933,-462.25063924,0.00013698,2]
[383013936,1756806453954,-480.91975508,0.00013698,2]
[383013937,1756806453975,-500.0,0.00013698,2]
[383013938,1756806453996,-500.84095973,0.00013698,2]
[383013939,1756806454017,-480.0,0.00013698,2]
[383013940,1756806454038,-481.91198476,0.00013698,2]
[383013941,1756806454058,-481.32191289,0.00013698,2]
[383013942,1756806454081,-481.07190847,0.00013698,2]
[383013943,1756806454101,-596.85,0.00013698,2]
[383013944,1756806454122,-481.87370303,0.00013698,2]
[383013945,1756806454142,-482.32161557,0.00013698,2]
[383013946,1756806454165,-480.0,0.00013698,2]
[383013947,1756806454185,-480.0,0.00013698,2]
[383013948,1756806454205,-480.80558483,0.00013698,2]
[383013949,1756806454225,-541.87,0.00013698,2]
[383013950,1756806454246,-482.43629264,0.00013698,2]
[383013951,1756806454266,-483.56948719,0.00013698,2]
[383013952,1756806454287,-480.0,0.00013698,2]
[383013953,1756806454309,-480.0,0.00013698,2]
[383013954,1756806454330,-513.18,0.00013698,2]
[383013955,1756806454351,-480.0,0.00013698,2]
[383013956,1756806454372,-480.0,0.00013698,2]
[383013957,1756806454392,-482.42728264,0.00013698,2]
[383013958,1756806454411,-480.0,0.00013698,2]
[383013959,1756806454430,-480.19893468,0.00013698,2]
[383013960,1756806454450,-480.0,0.00013698,2]
[383013961,1756806454472,-480.0,0.00013698,2]
[383013962,1756806454492,-487.82276459,0.00013698,2]
[383013963,1756806454515,-1848.6108245,0.00013698,2]
[383013964,1756806454536,-480.0,0.00013698,2]
[383013965,1756806454556,-152.010512,0.00013698,2]
[383013966,1756806454586,-480.73214017,0.00013698,2]
[383013967,1756806454608,-483.21123207,0.00013698,2]
[383013968,1756806454629,-151.0,0.00013698,2]
[383013969,1756806454649,-151.0,0.00013698,2]
[383013970,1756806454669,-151.0,0.00013698,2]
[383013971,1756806454689,-246.41919017,0.00013698,2]
[383013972,1756806454710,-151.0,0.00013698,2]
[383013973,1756806454730,-151.0,0.00013698,2]
[383013974,1756806454751,-151.0,0.00013698,2]
[383013975,1756806454771,-482.20957124,0.00013698,2]
[383013976,1756806454791,-480.0,0.00013698,2]
[383013977,1756806454811,-224.21,0.00013698,2]
[383013978,1756806454831,-480.0,0.00013698,2]
[383013979,1756806454851,-481.86256984,0.00013698,2]
[383013980,1756806454870,-481.95023667,0.00013698,2]
[383013981,1756806454890,-451.67,0.00013698,2]
[383013982,1756806454911,-482.91754952,0.00013698,2]
[383013983,1756806454932,-480.0,0.00013698,2]
[383013984,1756806454952,-480.0,0.00013698,2]
[383013985,1756806454972,-480.0,0.00013698,2]
[383013986,1756806454992,-533.92,0.00013698,2]
[383013987,1756806455012,-480.0,0.00013698,2]
[383013988,1756806455031,-480.0,0.00013698,2]
[383013989,1756806455051,-480.0,0.00013698,2]
[383013990,1756806455073,-482.4663229,0.00013698,2]
[383013991,1756806455093,-480.0,0.00013698,2]
[383013992,1756806455113,-489.56633629,0.00013698,2]
[383013993,1756806455132,-480.0,0.00013698,2]
[383013994,1756806455152,-480.0,0.00013698,2]
[383013995,1756806455172,-577.44153368,0.00013698,2]
[383013996,1756806455193,-481.88689076,0.00013698,2]
[383013997,1756806455213,-482.29695022,0.00013698,2]
[383013998,1756806455235,-480.0,0.00013698,2]
[383013999,1756806455257,-199.2,0.00013698,2]
[383014000,1756806455277,-615.48587998,0.00013698,2]
[383014001,1756806455297,-480.0,0.00013698,2]
[383014002,1756806455317,-481.34687124,0.00013698,2]
[383014003,1756806455337,-213.96,0.00013698,2]
[383014004,1756806455357,-480.0,0.00013698,2]
[383014005,1756806455376,-480.0,0.00013698,2]
[383014006,1756806455396,-483.3974698,0.00013698,2]
[383014007,1756806455416,-360.3000059,0.00013698,2]
[383014008,1756806455436,-496.82,0.00013698,2]
[383014009,1756806455456,-17.41910951,0.00013698,2]
[383014010,1756806460765,200.45320753,0.000135,2]
[383014011,1756806472879,177.524712,0.00012816,2]
[383014012,1756806473100,177.524712,0.00012816,120]
[383014013,1756806482977,300.0,0.00013697,2]
[383014014,1756806499538,354.78275248,0.00013561,2]
[383014015,1756806542826,300.0,0.00013697,2]
[383014016,1756806559675,-200.0,0.00013698,10]
[383014017,1756806559707,-200.0,0.00013698,10]
[383014018,1756806559741,-200.0,0.00013698,10]
[383014019,1756806559775,-200.0,0.00013698,10]
[383014020,1756806559808,-200.0,0.00013698,10]
[383014021,1756806562001,1000.0,0.00013599,2]
[383014022,1756806602816,300.0,0.00013697,2]
[383014023,1756806618069,2524.82941417,0.0001369,2]
[383014034,1756806633974,-462.58089049,0.00013698,2]
[383014035,1756806633984,-480.0,0.00013698,2]
[383014036,1756806633994,-270.48,0.00013698,2]
[383014037,1756806634004,-481.0892062,0.00013698,2]
[383014038,1756806634014,-290.47,0.00013698,2]
[383014039,1756806634024,-480.82976688,0.00013698,2]
[383014040,1756806634034,-480.0,0.00013698,2]
[383014041,1756806634043,-480.0,0.00013698,2]
[383014042,1756806634053,-281.07,0.00013698,2]
[383014043,1756806634063,-480.0,0.00013698,2]
[383014044,1756806634072,-480.0,0.00013698,2]
[383014045,1756806634082,-556.46331187,0.00013698,2]
[383014046,1756806634091,-480.0,0.00013698,2]
[383014047,1756806634100,-480.0,0.00013698,2]
[383014048,1756806634110,-480.0,0.00013698,2]
[383014049,1756806634120,-480.0,0.00013698,2]
[383014050,1756806634129,-480.0,0.00013698,2]
[383014051,1756806634139,-274.65,0.00013698,2]
[383014052,1756806634149,-480.73680457,0.00013698,2]
[383014053,1756806634159,-480.0,0.00013698,2]
[383014054,1756806634168,-186.25,0.00013698,2]
[383014055,1756806634178,-1.32286179,0.00013698,2]
[383014057,1756806638414,-414.17713821,0.00013698,2]
[383014058,1756806638423,-480.0,0.00013698,2]
[383014059,1756806638433,-480.0,0.00013698,2]
[383014060,1756806638442,-480.96796494,0.00013698,2]
[383014061,1756806638451,-480.0,0.00013698,2]
[383014062,1756806638461,-222.73,0.00013698,2]
[383014063,1756806638470,-482.20797517,0.00013698,2]
[383014064,1756806638479,-482.2095685,0.00013698,2]
[383014065,1756806638489,-480.0,0.00013698,2]
[383014066,1756806638498,-224.13,0.00013698,2]
[383014068,1756806638507,-377.74,0.00013698,2]
[383014070,1756806638517,-480.0,0.00013698,2]
[383014071,1756806638526,-481.57740104,0.00013698,2]
[383014072,1756806638536,-480.0,0.00013698,2]
[383014073,1756806638545,-344.40511649,0.00013698,2]
[383014074,1756806638557,-136.39843853,0.00013698,2]
[383014075,1756806638567,-480.0,0.00013698,2]
[383014076,1756806638576,-151.0,0.00013698,2]
[383014077,1756806638585,-151.0,0.00013698,2]
[383014078,1756806638594,-151.0,0.00013698,2]
[383014079,1756806638603,-481.45972956,0.00013698,2]
[383014080,1756806638613,-617.3,0.00013698,2]
[383014081,1756806638622,-480.0,0.00013698,2]
[383014082,1756806638631,-172.1863453,0.00013698,2]
[383014083,1756806638641,-235.344232,0.00013698,2]
[383014084,1756806638650,-235.344232,0.00013698,2]
[383014085,1756806638659,-235.344232,0.00013698,2]
[383014086,1756806638668,-235.344232,0.00013698,2]
[383014087,1756806638677,-480.0,0.00013698,2]
[383014088,1756806638686,-235.344232,0.00013698,2]
[383014089,1756806638696,-235.344232,0.00013698,2]
[383014090,1756806638709,-235.344232,0.00013698,2]
[383014091,1756806638719,-235.344232,0.00013698,2]
[383014092,1756806638728,-480.0,0.00013698,2]
[383014093,1756806638738,-235.344232,0.00013698,2]
[383014094,1756806638748,-235.344232,0.00013698,2]
[383014095,1756806638758,-235.344232,0.00013698,2]
[383014096,1756806638767,-235.344232,0.00013698,2]
[383014097,1756806638777,-480.0,0.00013698,2]
[383014098,1756806638786,-480.0,0.00013698,2]
[383014099,1756806638796,-480.0,0.00013698,2]
[383014100,1756806638805,-480.0,0.00013698,2]
[383014101,1756806638814,-480.81269121,0.00013698,2]
[383014102,1756806638824,-375.68899748,0.00013698,2]
[383014331,1756806642568,-104.31100252,0.00013698,2]
[383014332,1756806642578,-480.0,0.00013698,2]
[383014333,1756806642588,-482.8829491,0.00013698,2]
[383014334,1756806642597,-343.72900518,0.00013698,2]
[383014335,1756806642607,-480.0,0.00013698,2]
[383014336,1756806642616,-480.0,0.00013698,2]
[383014337,1756806642626,-480.0,0.00013698,2]
[383014338,1756806642635,-491.92174952,0.00013698,2]
[383014339,1756806642645,-151.0,0.00013698,2]
[383014340,1756806642655,-151.0,0.00013698,2]
[383014341,1756806642664,-151.0,0.00013698,2]
[383014342,1756806642674,-480.0,0.00013698,2]
[383014343,1756806642683,-480.0,0.00013698,2]
[383014344,1756806642693,-480.0,0.00013698,2]
[383014345,1756806642705,-480.0,0.00013698,2]
[383014346,1756806642715,-480.0,0.00013698,2]
[383014347,1756806642724,-160.55515879,0.00013698,2]
[383014348,1756806642733,-480.0,0.00013698,2]
[383014349,1756806642744,-480.0,0.00013698,2]
[383014350,1756806642753,-482.84723757,0.00013698,2]
[383014351,1756806642763,-480.0,0.00013698,2]
[383014352,1756806642773,-480.0,0.00013698,2]
[383014353,1756806642783,-480.0,0.00013698,2]
[383014354,1756806642793,-480.0,0.00013698,2]
[383014355,1756806642803,-480.0,0.00013698,2]
[383014356,1756806642812,-200.13968887,0.00013698,2]
[383014357,1756806642821,-484.09,0.00013698,2]
[383014358,1756806642831,-527.61312901,0.00013698,2]
[383014359,1756806642840,-480.0,0.00013698,2]
[383014360,1756806642849,-480.0,0.00013698,2]
[383014361,1756806642859,-500.0,0.00013698,2]
[383014362,1756806642869,-500.0,0.00013698,2]
[383014363,1756806642878,-500.0,0.00013698,2]
[383014365,1756806642888,-500.0,0.00013698,2]
[383014366,1756806642898,-500.0,0.00013698,2]
[383014367,1756806642908,-500.0,0.00013698,2]
[383014368,1756806642918,-500.0,0.00013698,2]
[383014370,1756806642928,-500.0,0.00013698,2]
[383014371,1756806642937,-500.0,0.00013698,2]
[383014373,1756806642947,-500.0,0.00013698,2]
[383014374,1756806642957,-500.0,0.00013698,2]
[383014375,1756806642967,-64.7983065,0.00013698,2]
[383014377,1756806643560,1061.50156236,0.00013598,2]
[383014378,1756806643608,-445.44205995,0.00013698,2]
[383014379,1756806643618,-480.0,0.00013698,2]
[383014380,1756806643627,-480.0,0.00013698,2]
[383014381,1756806643636,-372.24421145,0.00013698,2]
[383014382,1756806643646,-328.59548206,0.00013698,2]
[383014383,1756806643655,-480.0,0.00013698,2]
[383014384,1756806643664,-629.0,0.00013698,2]
[383014385,1756806643673,-480.0,0.00013698,2]
[383014386,1756806643682,-480.0,0.00013698,2]
[383014387,1756806643692,-482.17436888,0.00013698,2]
[383014388,1756806643703,-238.59985079,0.00013698,2]
[383014389,1756806643713,-481.70470394,0.00013698,2]
[383014390,1756806643722,-483.10175735,0.00013698,2]
[383014391,1756806643732,-584.03907151,0.00013698,2]
[383014392,1756806643742,-484.35598364,0.00013698,2]
[383014393,1756806643751,-480.0,0.00013698,2]
[383014394,1756806643761,-480.0,0.00013698,2]
[383014395,1756806643771,-593.80466762,0.00013698,2]
[383014396,1756806643782,-480.0,0.00013698,2]
[383014397,1756806643792,-480.0,0.00013698,2]
[383014398,1756806643802,-480.0,0.00013698,2]
[383014399,1756806643811,-565.60466085,0.00013698,2]
[383014400,1756806643822,-217.11756915,0.00013698,2]
[383014401,1756806643832,-481.06485864,0.00013698,2]
[383014402,1756806643841,-480.0,0.00013698,2]
[383014403,1756806643850,-151.0,0.00013698,2]
[383014404,1756806643859,-480.0,0.00013698,2]
[383014405,1756806643869,-204.45728701,0.00013698,2]
[383014406,1756806643878,-151.0,0.00013698,2]
[383014407,1756806643888,-151.0,0.00013698,2]
[383014408,1756806643898,-480.0,0.00013698,2]
[383014409,1756806643907,-151.41952284,0.00013698,2]
[383014410,1756806643917,-480.0,0.00013698,2]
[383014411,1756806643926,-480.0,0.00013698,2]
[383014412,1756806643936,-480.0,0.00013698,2]
[383014413,1756806643945,-482.09941057,0.00013698,2]
[383014414,1756806643954,-482.16185283,0.00013698,2]
[383014415,1756806643963,-1339.62,0.00013698,2]
[383014416,1756806643973,-480.0,0.00013698,2]
[383014417,1756806643983,-480.0,0.00013698,2]
[383014418,1756806643992,-480.0,0.00013698,2]
[383014419,1756806644001,-460.89988639,0.00013698,2]
[383014420,1756806644010,-480.0,0.00013698,2]
[383014421,1756806644019,-480.0,0.00013698,2]
[383014422,1756806644028,-480.0,0.00013698,2]
[383014423,1756806644037,-482.12498066,0.00013698,2]
[383014424,1756806644047,-480.0,0.00013698,2]
[383014425,1756806644056,-482.43266537,0.00013698,2]
[383014426,1756806644065,-480.0,0.00013698,2]
[383014427,1756806644074,-480.0,0.00013698,2]
[383014428,1756806644084,-480.0,0.00013698,2]
[383014429,1756806644093,-480.0,0.00013698,2]
[383014430,1756806644102,-480.0,0.00013698,2]
[383014431,1756806644111,-480.0,0.00013698,2]
[383014432,1756806644120,-480.0,0.00013698,2]
[383014433,1756806644129,-489.2875407,0.00013698,2]
[383014434,1756806644139,-2097.46,0.00013698,2]
[383014435,1756806644148,-480.0,0.00013698,2]
[383014436,1756806644157,-593.97077495,0.00013698,2]
[383014437,1756806644167,-480.0,0.00013698,2]
[383014438,1756806644178,-480.0,0.00013698,2]
[383014439,1756806644187,-480.0,0.00013698,2]
[383014440,1756806644197,-483.08538617,0.00013698,2]
[383014441,1756806644207,-480.0,0.00013698,2]
[383014442,1756806644216,-568.87802622,0.00013698,2]
[383014443,1756806644225,-480.0,0.00013698,2]
[383014444,1756806644234,-480.0,0.00013698,2]
[383014445,1756806644243,-480.0,0.00013698,2]
[383014446,1756806644253,-480.0,0.00013698,2]
[383014447,1756806644262,-480.0,0.00013698,2]
[383014448,1756806644271,-483.07921872,0.00013698,2]
[383014449,1756806644280,-480.0,0.00013698,2]
[383014450,1756806644290,-483.03845326,0.00013698,2]
[383014451,1756806644300,-480.0,0.00013698,2]
[383014452,1756806644310,-480.0,0.00013698,2]
[383014453,1756806644319,-485.90240617,0.00013698,2]
[383014454,1756806644329,-480.0,0.00013698,2]
[383014455,1756806644340,-480.0,0.00013698,2]
[383014456,1756806644351,-480.0,0.00013698,2]
[383014457,1756806644363,-480.0,0.00013698,2]
[383014458,1756806644372,-482.78022347,0.00013698,2]
[383014459,1756806644382,-482.76822224,0.00013698,2]
[383014460,1756806644391,-480.0,0.00013698,2]
[383014461,1756806644400,-388.60714091,0.00013698,2]
[383014462,1756806644409,-480.0,0.00013698,2]
[383014463,1756806644419,-480.0,0.00013698,2]
[383014464,1756806644429,-482.64121102,0.00013698,2]
[383014465,1756806644438,-480.0,0.00013698,2]
[383014466,1756806644448,-480.0,0.00013698,2]
[383014467,1756806644457,-480.0,0.00013698,2]
[383014468,1756806644467,-510.87,0.00013698,2]
[383014469,1756806644476,-384.33,0.00013698,2]
[383014470,1756806644485,-480.0,0.00013698,2]
[383014471,1756806644495,-480.0,0.00013698,2]
[383014472,1756806644503,-572.76,0.00013698,2]
[383014473,1756806644511,-480.0,0.00013698,2]
[383014474,1756806644520,-480.0,0.00013698,2]
[383014475,1756806644529,-795.68,0.00013698,2]
[383014476,1756806644539,-480.0,0.00013698,2]
[383014477,1756806644548,-480.0,0.00013698,2]
[383014478,1756806644556,-480.0,0.00013698,2]
[383014479,1756806644566,-480.0,0.00013698,2]
[383014480,1756806644575,-480.0,0.00013698,2]
[383014481,1756806644584,-480.0,0.00013698,2]
[383014482,1756806644593,-491.8,0.00013698,2]
[383014483,1756806644603,-480.0,0.00013698,2]
[383014484,1756806644613,-151.0,0.00013698,2]
[383014485,1756806644622,-151.0,0.00013698,2]
[383014486,1756806644632,-498.24,0.00013698,2]
[383014487,1756806644641,-151.0,0.00013698,2]
[383014488,1756806644650,-265.5352574,0.00013698,2]
[383014489,1756806644660,-480.0,0.00013698,2]
[383014490,1756806644669,-168.52175145,0.00013698,2]
[383014491,1756806644680,-480.0,0.00013698,2]
[383014492,1756806644691,-480.0,0.00013698,2]
[383014493,1756806644701,-480.0,0.00013698,2]
[383014494,1756806644714,-480.0,0.00013698,2]
[383014495,1756806644722,-480.0,0.00013698,2]
[383014496,1756806644731,-480.0,0.00013698,2]
[383014497,1756806644741,-480.0,0.00013698,2]
[383014498,1756806644751,-480.0,0.00013698,2]
[383014499,1756806644760,-480.0,0.00013698,2]
[383014500,1756806644769,-480.0,0.00013698,2]
[383014501,1756806644778,-480.0,0.00013698,2]
[383014502,1756806644788,-480.0,0.00013698,2]
[383014503,1756806644797,-480.0,0.00013698,2]
[383014504,1756806644807,-485.54390651,0.00013698,2]
[383014505,1756806644816,-480.0,0.00013698,2]
[383014506,1756806644825,-480.0,0.00013698,2]
[383014507,1756806644835,-480.0,0.00013698,2]
[383014508,1756806644844,-480.0,0.00013698,2]
[383014509,1756806644853,-482.68845753,0.00013698,2]
[383014510,1756806644862,-480.0,0.00013698,2]
[383014511,1756806644872,-480.0,0.00013698,2]
[383014512,1756806644882,-978.32,0.00013698,2]
[383014513,1756806644891,-480.0,0.00013698,2]
[383014514,1756806644899,-480.0,0.00013698,2]
[383014515,1756806644909,-480.0,0.00013698,2]
[383014516,1756806644918,-480.0,0.00013698,2]
[383014517,1756806644927,-480.0,0.00013698,2]
[383014518,1756806644936,-480.0,0.00013698,2]
[383014519,1756806644946,-480.0,0.00013698,2]
[383014520,1756806644955,-480.0,0.00013698,2]
[383014521,1756806644964,-259.76717178,0.00013698,2]
[383014536,1756806647046,-220.23282822,0.00013698,2]
[383014537,1756806647055,-771.23,0.00013698,2]
[383014538,1756806647065,-480.6731611,0.00013698,2]
[383014539,1756806647075,-480.0,0.00013698,2]
[383014540,1756806647084,-480.0,0.00013698,2]
[383014541,1756806647093,-480.0,0.00013698,2]
[383014542,1756806647103,-480.0,0.00013698,2]
[383014543,1756806647112,-480.0,0.00013698,2]
[383014544,1756806647121,-480.0,0.00013698,2]
[383014545,1756806647130,-480.0,0.00013698,2]
[383014546,1756806647140,-480.0,0.00013698,2]
[383014547,1756806647149,-480.0,0.00013698,2]
[383014548,1756806647159,-877.87078237,0.00013698,2]
[383014549,1756806662809,300.0,0.00013697,2]
[383014550,1756806708868,790.56943861,0.00013598,2]
[383014551,1756806722634,300.0,0.00013697,2]
[383014552,1756806729638,1200.0,0.00013697,2]
[383014553,1756806782734,263.0,0.00013697,2]
[383014554,1756806826943,2146.2213614,0.00029931,60]
[383014555,1756806903117,831.0,0.00013697,2]
[383014556,1756806933767,186.83737666,0.0001369,2]
[383014557,1756806992642,849.20124988,0.00013598,2]
[383014558,1756806993576,691.74825874,0.00013598,2]
[383014560,1756807179615,33746.5299471,0.00013598,2]
[383014561,1756807251367,250.0,0.00012532,2]
[383014562,1756807273898,605.27972638,0.00013597,2]
[383014563,1756807275371,269.63489188,0.00013287,2]
[383014567,1756807481676,-679.36099992,0.00013598,2]
[383014568,1756807481699,-46264.8941006,0.00013598,2]
[383014569,1756807481721,-500.0,0.00013673,2]
[383014570,1756807481741,-500.0,0.00013673,2]
[383014571,1756807481762,-500.0,0.00013673,2]
[383014572,1756807481783,-500.0,0.00013673,2]
[383014573,1756807481805,-500.0,0.00013697,2]
[383014574,1756807481828,-500.0,0.00013697,2]
[383014575,1756807481852,-500.0,0.00013697,2]
[383014576,1756807481876,-500.0,0.00013697,2]
[383014577,1756807481898,-500.0,0.00013697,2]
[383014578,1756807481921,-500.0,0.00013697,2]
[383014579,1756807481944,-361.3218652,0.00013697,2]
[383014580,1756807481967,-500.0,0.00013697,2]
[383014581,1756807481990,-203.76159861,0.00013698,2]
[383014582,1756807482018,-480.0,0.00013698,2]
[383014583,1756807482039,-480.0,0.00013698,2]
[383014584,1756807482060,-480.0,0.00013698,2]
[383014585,1756807482081,-480.0,0.00013698,2]
[383014586,1756807482103,-480.0,0.00013698,2]
[383014587,1756807482124,-480.0,0.00013698,2]
[383014588,1756807482146,-480.0,0.00013698,2]
[383014589,1756807482168,-480.0,0.00013698,2]
[383014590,1756807482188,-488.04090366,0.00013698,2]
[383014591,1756807482208,-480.0,0.00013698,2]
[383014592,1756807482228,-480.0,0.00013698,2]
[383014593,1756807482248,-480.0,0.00013698,2]
[383014594,1756807482268,-480.0,0.00013698,2]
[383014595,1756807482289,-381.05063748,0.00013698,2]